fUSD/lending_fUSD_20250607
["ID","MTS","AMOUNT","RATE_DAILY","PERIOD"]
[364860305,1749279052596,-777.55,0.00027561,5]
[364860306,1749279052607,-1024.25,0.00027561,5]
[364860307,1749279052619,-1444.88,0.00027561,5]
[364860308,1749279052630,-480.0,0.00027561,5]
[364860309,1749279052641,-722.96,0.00027561,5]
[364860310,1749279052654,-480.0,0.00027561,5]
[364860311,1749279052664,-767.5,0.00027561,5]
[364860312,1749279052674,-480.0,0.00027561,5]
[364860313,1749279052685,-480.0,0.00027561,5]
[364860314,1749279052695,-480.0,0.00027561,5]
[364860315,1749279052705,-634.7,0.00027561,5]
[364860316,1749279052716,-508.32764207,0.00027561,5]
[364860317,1749279052728,-480.0,0.00027561,5]
[364860318,1749279052738,-753.65,0.00027561,5]
[364860319,1749279052748,-480.0,0.00027561,5]
[364860320,1749279052759,-480.0,0.00027561,5]
[364860321,1749279052769,-547.93,0.00027561,5]
[364860322,1749279052780,-480.0,0.00027561,5]
[364860323,1749279052790,-480.0,0.00027561,5]
[364860324,1749279052803,-480.0,0.00027561,5]
[364860325,1749279052814,-480.0,0.00027561,5]
[364860326,1749279052826,-904.43,0.00027561,5]
[364860327,1749279052837,-662.39,0.00027561,5]
[364860328,1749279052848,-480.0,0.00027561,5]
[364860329,1749279052865,-480.0,0.00027561,5]
[364860330,1749279052876,-552.7,0.00027561,5]
[364860331,1749279052887,-482.90756565,0.00027561,5]
[364860332,1749279052899,-386.78537358,0.00027561,5]
[364860333,1749279052911,-480.0,0.00027561,5]
[364860334,1749279052922,-480.0,0.00027561,5]
[364860335,1749279052933,-480.0,0.00027561,5]
[364860336,1749279052945,-1932.61,0.00027561,5]
[364860337,1749279052956,-151.736635,0.00027561,7]
[364860338,1749279052968,-1442.29,0.00027561,5]
[364860339,1749279052979,-478.79600079,0.00027561,5]
[364860340,1749279052990,-737.3,0.00027561,5]
[364860341,1749279053001,-853.62,0.00027561,5]
[364860342,1749279053012,-480.0,0.00027561,5]
[364860343,1749279053023,-151.0,0.00027561,7]
[364860344,1749279053035,-151.0,0.00027561,7]
[364860345,1749279053046,-480.0,0.00027561,5]
[364860346,1749279053057,-480.0,0.00027561,5]
[364860347,1749279053068,-480.0,0.00027561,5]
[364860348,1749279053080,-910.02,0.00027561,5]
[364860349,1749279053090,-1000.0,0.00027561,5]
[364860350,1749279053101,-480.0,0.00027561,5]
[364860351,1749279053113,-480.0,0.00027561,5]
[364860352,1749279053124,-879.54,0.00027561,5]
[364860353,1749279053135,-480.0,0.00027561,5]
[364860354,1749279053146,-480.0,0.00027561,5]
[364860355,1749279053156,-480.0,0.00027561,5]
[364860356,1749279053167,-893.28,0.00027561,5]
[364860357,1749279053178,-513.08241276,0.00027561,5]
[364860358,1749279053189,-190.537295,0.00027561,7]
[364860359,1749279053200,-553.41,0.00027561,5]
[364860360,1749279053211,-480.0,0.00027561,5]
[364860361,1749279053221,-480.0,0.00027561,5]
[364860362,1749279053232,-299.428056,0.00027561,7]
[364860363,1749279053243,-151.0,0.00027561,7]
[364860364,1749279053254,-918.01,0.00027561,5]
[364860365,1749279053265,-480.0,0.00027561,5]
[364860366,1749279053276,-480.0,0.00027561,5]
[364860367,1749279053291,-590.11,0.00027561,5]
[364860368,1749279053302,-480.0,0.00027561,5]
[364860369,1749279053313,-480.0,0.00027561,5]
[364860370,1749279053325,-733.19,0.00027561,5]
[364860371,1749279053335,-480.0,0.00027561,5]
[364860372,1749279053347,-480.0,0.00027561,5]
[364860373,1749279053358,-480.0,0.00027561,5]
[364860374,1749279053369,-1387.38,0.00027561,5]
[364860375,1749279053380,-480.0,0.00027561,5]
[364860376,1749279053391,-943.26,0.00027561,5]
[364860377,1749279053403,-432.54508676,0.00027561,5]
[364860378,1749279053413,-480.0,0.00027561,5]
[364860379,1749279053424,-749.803238,0.00027561,7]
[364860380,1749279053436,-749.803238,0.00027561,7]
[364860381,1749279053447,-498.03321901,0.00027561,5]
[364860382,1749279053458,-2163.97,0.00027561,5]
[364860383,1749279053471,-557.74,0.00027561,5]
[364860384,1749279053482,-569.48,0.00027561,5]
[364860385,1749279053493,-1648.23,0.00027561,5]
[364860386,1749279053504,-480.0,0.00027561,5]
[364860387,1749279053517,-488.77685492,0.00027561,5]
[364860388,1749279053528,-480.0,0.00027561,5]
[364860389,1749279053539,-500.72939697,0.00027561,5]
[364860390,1749279053549,-480.0,0.00027561,5]
[364860391,1749279053560,-480.0,0.00027561,5]
[364860392,1749279053571,-749.25,0.00027561,5]
[364860393,1749279053581,-1412.46,0.00027561,5]
[364860394,1749279053592,-2857.82,0.00027561,5]
[364860395,1749279053604,-480.0,0.00027561,5]
[364860396,1749279053615,-622.48,0.00027561,5]
[364860397,1749279053626,-151.0,0.00027561,7]
[364860398,1749279053636,-569.07,0.00027561,5]
[364860399,1749279053647,-151.0,0.00027561,7]
[364860400,1749279053659,-480.0,0.00027561,5]
[364860401,1749279053672,-480.0,0.00027561,5]
[364860402,1749279053683,-496.4309924,0.00027561,5]
[364860403,1749279053695,-151.0,0.00027561,7]
[364860404,1749279053708,-480.0,0.00027561,5]
[364860405,1749279054100,-2182.78,0.00027561,5]
[364860406,1749279054118,-480.0,0.00027561,5]
[364860407,1749279054140,-1214.41,0.00027561,5]
[364860408,1749279054154,-480.0,0.00027561,5]
[364860409,1749279054166,-665.13,0.00027561,5]
[364860410,1749279054177,-490.42543664,0.00027561,5]
[364860411,1749279054189,-202.192633,0.00027561,7]
[364860412,1749279054201,-151.0,0.00027561,7]
[364860413,1749279054213,-480.0,0.00027561,5]
[364860414,1749279054223,-151.0,0.00027561,7]
[364860415,1749279054234,-202.192633,0.00027561,7]
[364860416,1749279054245,-302.356754,0.00027561,7]
[364860417,1749279054256,-919.54,0.00027561,5]
[364860418,1749279054267,-480.0,0.00027561,5]
[364860419,1749279054278,-302.356754,0.00027561,7]
[364860420,1749279054289,-480.0,0.00027561,5]
[364860421,1749279054300,-1367.55,0.00027561,5]
[364860422,1749279054311,-672.79,0.00027561,5]
[364860423,1749279054323,-480.0,0.00027561,5]
[364860424,1749279054334,-800.24,0.00027561,5]
[364860425,1749279054345,-480.0,0.00027561,5]
[364860426,1749279054356,-151.0,0.00027561,7]
[364860427,1749279054367,-480.0,0.00027561,5]
[364860428,1749279054378,-151.0,0.00027561,7]
[364860429,1749279054390,-687.36,0.00027561,5]
[364860430,1749279054400,-1597.05,0.00027561,5]
[364860431,1749279054411,-197.47693233,0.00027561,5]
[364860432,1749279054422,-480.0,0.00027561,5]
[364860433,1749279054435,-1041.28,0.00027561,5]
[364860434,1749279054447,-480.0,0.00027561,5]
[364860435,1749279054458,-7867.19,0.00027561,5]
[364860436,1749279054468,-480.0,0.00027561,5]
[364860437,1749279054480,-1192.45,0.00027561,5]
[364860438,1749279054491,-480.0,0.00027561,5]
[364860439,1749279054502,-480.0,0.00027561,5]
[364860440,1749279054515,-1207.24,0.00027561,5]
[364860441,1749279054527,-3159.58,0.00027561,5]
[364860442,1749279054538,-151.0,0.00027561,7]
[364860443,1749279054549,-5778.32,0.00027561,5]
[364860444,1749279054561,-3649.83,0.00027561,5]
[364860445,1749279054579,-674.63,0.00027561,5]
[364860446,1749279054590,-597.56,0.00027561,5]
[364860447,1749279054602,-1605.15,0.00027561,5]
[364860448,1749279054612,-480.0,0.00027561,5]
[364860449,1749279054623,-1795.02,0.00027561,5]
[364860450,1749279054634,-8058.131732,0.00027561,5]
[364860451,1749279054645,-151.0,0.00027561,7]
[364860452,1749279054655,-480.0,0.00027561,5]
[364860453,1749279054666,-675.89,0.00027561,5]
[364860454,1749279054677,-1000.0,0.00027561,5]
[364860455,1749279054688,-1938.91,0.00027561,2]
[364860456,1749279054699,-2908.68,0.00027561,5]
[364860457,1749279054710,-480.0,0.00027561,5]
[364860458,1749279054720,-3129.04,0.00027561,5]
[364860459,1749279054731,-2008.91,0.00027561,5]
[364860460,1749279054742,-1382.23,0.00027561,5]
[364860461,1749279054753,-480.0,0.00027561,5]
[364860462,1749279054770,-769.38,0.00027561,5]
[364860463,1749279054780,-480.0,0.00027561,5]
[364860464,1749279054791,-480.0,0.00027561,5]
[364860465,1749279054802,-480.0,0.00027561,5]
[364860466,1749279054813,-480.0,0.00027561,5]
[364860467,1749279054824,-1395.16,0.00027561,5]
[364860468,1749279054835,-1513.66,0.00027561,5]
[364860469,1749279054846,-847.7,0.00027561,5]
[364860470,1749279054856,-6791.81,0.00027561,5]
[364860471,1749279054867,-480.0,0.00027561,5]
[364860472,1749279054880,-480.0,0.00027561,5]
[364860473,1749279054891,-480.0,0.00027561,5]
[364860474,1749279054902,-151.0,0.00027561,7]
[364860475,1749279054913,-1741.41,0.00027561,5]
[364860476,1749279054924,-2409.13,0.00027561,5]
[364860477,1749279054935,-943.3,0.00027561,5]
[364860478,1749279054945,-756.95,0.00027561,5]
[364860479,1749279054956,-151.0,0.00027561,7]
[364860480,1749279054967,-487.44471724,0.00027561,5]
[364860481,1749279054978,-10907.26,0.00027561,5]
[364860482,1749279054988,-480.0,0.00027561,5]
[364860483,1749279055000,-1163.13,0.00027561,5]
[364860484,1749279055010,-480.0,0.00027561,5]
[364860485,1749279055020,-480.0,0.00027561,5]
[364860486,1749279055031,-480.0,0.00027561,5]
[364860487,1749279055042,-2029.78,0.00027561,5]
[364860488,1749279055052,-6863.550341,0.00027561,5]
[364860489,1749279055063,-480.0,0.00027561,5]
[364860490,1749279055074,-480.0,0.00027561,5]
[364860491,1749279055084,-572.83,0.00027561,5]
[364860492,1749279055095,-480.0,0.00027561,5]
[364860493,1749279055106,-1033.36,0.00027561,5]
[364860494,1749279055116,-1518.79,0.00027561,5]
[364860495,1749279055127,-480.0,0.00027561,5]
[364860496,1749279055138,-480.0,0.00027561,5]
[364860497,1749279055148,-1860.84,0.00027561,5]
[364860498,1749279055159,-480.0,0.00027561,5]
[364860499,1749279055170,-684.54,0.00027561,5]
[364860500,1749279055180,-291.24343046,0.00027561,5]
[364860501,1749279055191,-480.0,0.00027561,5]
[364860502,1749279055201,-480.0,0.00027561,5]
[364860503,1749279055212,-480.0,0.00027561,5]
[364860504,1749279055223,-1274.05,0.00027561,5]
[364860505,1749279055233,-794.18,0.00027561,5]
[364860506,1749279055244,-477.19180463,0.00027561,5]
[364860507,1749279055255,-1233.4,0.00027561,5]
[364860508,1749279055265,-480.0,0.00027561,5]
[364860509,1749279055276,-350.353554,0.00027561,5]
[364860510,1749279055287,-1830.02,0.00027561,5]
[364860511,1749279055297,-928.69,0.00027561,5]
[364860512,1749279055307,-480.0,0.00027561,5]
[364860513,1749279055318,-480.0,0.00027561,5]
[364860514,1749279055329,-480.0,0.00027561,5]
[364860515,1749279055340,-480.0,0.00027561,5]
[364860516,1749279055351,-655.28,0.00027561,5]
[364860517,1749279055361,-1731.59,0.00027561,5]
[364860518,1749279055371,-480.0,0.00027561,5]
[364860519,1749279055382,-552.47,0.00027561,5]
[364860520,1749279055392,-378.19890344,0.00027561,2]
[364860521,1749279055402,-480.0,0.00027561,5]
[364860522,1749279055412,-3711.19,0.00027561,5]
[364860523,1749279055423,-480.0,0.00027561,5]
[364860524,1749279055434,-480.0,0.00027561,5]
[364860525,1749279055445,-6717.19319717,0.00027561,5]
[364860526,1749279057249,-164.0,0.00026812,2]
[364860527,1749279057259,-34.86012318,0.00027397,5]
[364860528,1749279057283,-445.13987682,0.00027397,5]
[364860529,1749279057293,-242.90734981,0.00027397,5]
[364860530,1749279057310,-252.04952015,0.00027397,5]
[364860531,1749279057319,-483.0926414,0.00027397,5]
[364860532,1749279057330,-38.80061182,0.00027397,5]
[364860533,1749279058201,-1397.585331,0.000215,3]
[364860534,1749279058213,-2029.788385,0.000215,3]
[364860535,1749279058322,-2061.96235488,0.000215,3]
[364860536,1749279058334,-4510.66392912,0.000215,3]
[364860537,1749279058344,-300.0,0.00026743,2]
[364860538,1749279058353,-5688.64109688,0.00026744,2]
[364860539,1749279058412,-736.7301376,0.00026744,2]
[364860543,1749279205715,542.403852,0.00035612,120]
[364860544,1749279208641,500.0,0.00035612,120]
[364860545,1749279266390,1037.0,0.00035612,120]
[364860546,1749279268753,875.3405751,0.00035616,120]
[364860548,1749279442062,193.0,0.000356,120]
[364860549,1749279478491,193.0,0.000356,120]
[364860664,1749279700893,583.06123621,0.0003561,120]
[364860666,1749279894063,2500.0,0.00035616,120]
[364860668,1749279928891,153.26,0.00013699,2]
[364860669,1749279951797,306.64,0.00019,2]
[364860670,1749279980129,1500.0,0.00035616,120]
[364860671,1749280023600,500.0,0.00035616,120]
[364860684,1749280055647,7108.75,0.00035616,120]
[364860686,1749280151991,1900.0,0.00035616,120]
[364860687,1749280218878,328.86368972,0.00035616,120]
[364860701,1749280238138,-151.0,0.00019999,2]
[364860703,1749280238149,-153.26,0.00020187,2]
[364860705,1749280238159,-142.1835932,0.00020547,2]
[364860707,1749280238171,-45.17982058,0.00020547,2]
[364860710,1749280238181,-250.0,0.00020684,2]
[364860712,1749280238191,-175.15,0.00021597,2]
[364860713,1749280238201,-250.0,0.00021821,2]
[364860714,1749280238210,-168.35692129,0.00021899,2]
[364860716,1749280238221,-3372.34200885,0.00021976,2]
[364860717,1749280238231,-250.0,0.00021999,2]
[364860719,1749280238240,-800.0,0.00021999,4]
[364860720,1749280238249,-300.0,0.00022436,2]
[364860721,1749280238259,-1200.0,0.00022436,2]
[364860722,1749280238269,-4350.90009817,0.00022437,2]
[364860723,1749280238279,-1156.93,0.00022474,2]
[364860724,1749280238289,-9155.91187845,0.00022499,2]
[364860725,1749280238299,-10000.0,0.000225,3]
[364860726,1749280238309,-1000.0,0.00023499,2]
[364860727,1749280238319,-10000.0,0.000235,4]
[364860728,1749280238330,-201.6235465,0.000235,9]
[364860729,1749280238340,-1078.0,0.00023529,2]
[364860730,1749280238350,-207.4,0.00024012,2]
[364860731,1749280238360,-200.0,0.00024248,2]
[364860732,1749280238370,-150.0,0.0002432,7]
[364860733,1749280238379,-407.0,0.0002437,2]
[364860734,1749280238388,-1392.44491606,0.0002438,2]
[364860735,1749280238398,-241.74,0.00024398,30]
[364860736,1749280238407,-168.35692129,0.00024407,2]
[364860737,1749280238416,-5729.71790387,0.0002443,2]
[364860738,1749280238453,-784.7064068,0.0002443,2]
[364860739,1749280238466,-1168.28402153,0.0002443,2]
[364860740,1749280238477,-4975.40926756,0.0002443,2]
[364860741,1749280238489,-857.02240024,0.0002443,2]
[364860743,1749280238499,-151.0,0.00024493,2]
[364860745,1749280238510,-1000.0,0.00024493,2]
[364860747,1749280238520,-500.0,0.00024499,2]
[364860749,1749280238531,-500.0,0.00024499,2]
[364860751,1749280238541,-500.0,0.00024499,2]
[364860754,1749280238551,-442.0579219,0.00024499,2]
[364860755,1749280238560,-10000.0,0.000245,4]
[364860757,1749280238570,-7999.42293747,0.00024507,2]
[364860760,1749280238583,-8800.8130788,0.00024507,2]
[364860763,1749280238604,-408.85176986,0.00024507,2]
[364860765,1749280238616,-919.95716395,0.00024507,2]
[364860767,1749280238628,-263.35,0.00024507,2]
[364860912,1749280239881,-828.28107294,0.00024507,2]
[364860914,1749280239894,-368.78381753,0.00024507,2]
[364861071,1749280246092,-197.89043398,0.00024499,2]
[364861072,1749280246102,-688.51204336,0.00024507,2]
[364861073,1749280246114,-3622.02811609,0.00024507,2]
[364861074,1749280246124,-5457.32,0.00024577,2]
[364861075,1749280246134,-167.88,0.00024629,2]
[364861076,1749280246144,-500.0,0.00024658,2]
[364861077,1749280246154,-500.0,0.00024658,2]
[364861078,1749280246163,-500.0,0.00024658,2]
[364861079,1749280246173,-449.83489251,0.00024658,2]
[364861080,1749280246183,-500.0,0.00024658,2]
[364861081,1749280246192,-500.0,0.00024658,2]
[364861082,1749280246202,-500.0,0.00024658,2]
[364861083,1749280246212,-500.0,0.00024658,2]
[364861084,1749280246222,-500.0,0.00024658,2]
[364861085,1749280246233,-500.0,0.00024658,2]
[364861086,1749280246242,-535.47847468,0.00024658,2]
[364861087,1749280246252,-500.0,0.00024658,2]
[364861088,1749280246261,-500.0,0.00024658,2]
[364861089,1749280246271,-500.0,0.00024658,2]
[364861090,1749280246281,-500.0,0.00024658,2]
[364861091,1749280246291,-500.0,0.00024658,2]
[364861092,1749280246301,-250.0,0.00024691,2]
[364861093,1749280246310,-1000.0,0.00024698,2]
[364861094,1749280246320,-1156.93,0.00024738,2]
[364861095,1749280246330,-1078.0,0.00024767,2]
[364861096,1749280246343,-1228.74,0.00024785,2]
[364861097,1749280246352,-150.41,0.00024954,2]
[364861098,1749280246362,-165.22,0.00025113,2]
[364861099,1749280246372,-215.0738,0.00025381,2]
[364861100,1749280246383,-10000.0,0.000255,4]
[364861101,1749280246393,-1004.69400058,0.00025532,2]
[364861102,1749280246402,-193.0,0.000256,4]
[364861103,1749280246412,-196.56,0.000256,3]
[364861104,1749280246423,-156.587,0.00025862,2]
[364861105,1749280246433,-1000.0,0.00026,2]
[364861106,1749280246442,-602.49512137,0.00026005,2]
[364861107,1749280246452,-1000.0,0.00026495,2]
[364861108,1749280246462,-10000.0,0.000265,5]
[364861109,1749280246472,-150.41,0.00026513,2]
[364861110,1749280246483,-500.0,0.0002652,7]
[364861111,1749280246493,-152.0,0.00026626,3]
[364861112,1749280246502,-153.26,0.00026676,2]
[364861113,1749280246512,-155.0,0.00026733,2]
[364861114,1749280246522,-4082.0,0.00026733,2]
[364861115,1749280246532,-840.09,0.00026733,2]
[364861116,1749280246542,-1159.0,0.00026733,2]
[364861117,1749280246552,-155.573486,0.00026734,6]
[364861118,1749280246561,-223.0315306,0.0002675,2]
[364861119,1749280246571,-176.912,0.00026812,2]
[364861120,1749280246580,-163.25,0.00026914,2]
[364861121,1749280246590,-163.25,0.00026914,2]
[364861122,1749280246600,-163.22,0.00026914,2]
[364861123,1749280246610,-163.22,0.00026914,2]
[364861124,1749280246619,-163.22,0.00026914,2]
[364861125,1749280246629,-163.22,0.00026914,2]
[364861126,1749280246639,-193.0,0.00027,5]
[364861127,1749280246648,-193.0,0.00027,5]
[364861128,1749280246658,-2000.0,0.00027,2]
[364861129,1749280246668,-2000.0,0.00027,2]
[364861130,1749280246676,-155.0,0.00027,7]
[364861131,1749280246686,-1156.93,0.00027002,2]
[364861132,1749280246696,-2500.0,0.00027197,2]
[364861133,1749280246706,-2696.44946109,0.00027197,2]
[364861134,1749280246716,-195.56308711,0.00027205,30]
[364861135,1749280246726,-162.380719,0.00027231,2]
[364861136,1749280246737,-1052.97231797,0.00027232,2]
[364861137,1749280246748,-202.69,0.00027287,2]
[364861138,1749280246758,-1396.61891591,0.00027287,2]
[364861139,1749280246768,-1378.23595,0.0002729,2]
[364861140,1749280246778,-2578.55857487,0.00027295,2]
[364861141,1749280246880,-117.89088621,0.00027295,2]
[364861142,1749280246891,-1232.16311379,0.00027297,2]
[364861147,1749280408034,500.0,0.00035614,120]
[364861148,1749280603541,50000.0,0.00035616,120]
[364861149,1749280681739,1116.8,0.00035616,120]
[364861150,1749280975456,153.26,0.00013699,2]
[364861194,1749281345874,450.7,0.00035,120]
[364861210,1749281432044,-1860.611723,0.00019799,2]
[364861211,1749281432055,-1200.0,0.00019899,2]
[364861212,1749281432066,-222.54198726,0.00019899,2]
[364861213,1749281432076,-2816.84628964,0.000199,2]
[364861214,1749281432089,-5880.0,0.000199,2]
[364861215,1749281432101,-3550.000005,0.000199,2]
[364861216,1749281432112,-1300.0,0.000199,2]
[364861217,1749281432123,-10650.0,0.000199,2]
[364861218,1749281432135,-6544.34204175,0.000199,2]
[364861219,1749281432187,-404.35360807,0.000199,2]
[364861220,1749281432331,-39719.05234486,0.000199,2]
[364861221,1749281432341,-1256.95702431,0.000199,2]
[364861222,1749281432351,-166.59625508,0.000199,2]
[364861223,1749281432360,-500.0123149,0.0001995,2]
[364861224,1749281432370,-514.0,0.0001997,2]
[364861225,1749281432380,-2976.79392012,0.00019985,2]
[364861226,1749281432393,-420.54461945,0.00019985,2]
[364861227,1749281432405,-1301.93554296,0.00019985,2]
[364861246,1749281437952,-1126.43250479,0.00019985,2]
[364861394,1749281440088,-2600.00000001,0.00019985,2]
[364861412,1749281440259,-13429.61932777,0.00019985,2]
[364861438,1749281440507,-919.39818052,0.00019985,2]
[364861440,1749281440520,-1403.07622281,0.00019985,2]
[364861443,1749281440533,-9467.1,0.00019985,2]
[364861689,1749281443035,-318.89274973,0.00019985,2]
[364861702,1749281446358,-300.0,0.00019984,2]
[364861703,1749281446368,-470.59625508,0.00019985,2]
[364861706,1749281606370,500.0,0.00033564,120]
[364861707,1749281606709,500.0,0.00035615,120]
[364861708,1749281664354,68684.9493076,0.00035,120]
[364861711,1749281949374,1000.0,0.00035,120]
[364861712,1749281970443,1000.0,0.00035,120]
[364861725,1749282080746,5888.0,0.00035616,120]
[364861736,1749282207713,299.978763,0.00033564,120]
[364861737,1749282243135,-273.15409668,0.00019052,2]
[364861738,1749282249893,-201.92504527,0.00019052,2]
[364861739,1749282254413,-156.46259301,0.00019052,2]
[364861740,1749282257048,-271.73129478,0.00019052,2]
[364861741,1749282259215,-186.63196157,0.00019052,2]
[364861742,1749282262136,-151.0,0.00019052,2]
[364861743,1749282263259,5000.0,0.00018977,2]
[364861744,1749282265912,-151.31886737,0.00019052,2]
[364861745,1749282270971,-216.32,0.00019052,2]
[364861746,1749282274174,-330.97664632,0.00019052,2]
[364861747,1749282276725,-200.0,0.00019052,2]
[364861748,1749282279256,-283.33804158,0.00019052,2]
[364861749,1749282281298,-250.0,0.00019052,2]
[364861750,1749282284427,-171.51263129,0.00019052,2]
[364861751,1749282286832,-236.43583654,0.00019052,2]
[364861752,1749282289793,-178.9177775,0.00019052,2]
[364861753,1749282294402,-357.19142845,0.00019052,2]
[364861754,1749282296976,-160.14915463,0.00019052,2]
[364861755,1749282300033,-153.5862129,0.00019052,2]
[364861756,1749282302207,183.98,0.00013699,2]
[364861757,1749282302241,-307.84084537,0.00019052,2]
[364861758,1749282305787,-158.12641717,0.00019052,2]
[364861760,1749282311280,-286.38450104,0.00019052,2]
[364861762,1749282313931,-233.47180927,0.00019052,2]
[364861763,1749282317043,-385.23,0.00019052,2]
[364861764,1749282319455,-194.81840216,0.00019052,2]
[364861765,1749282321417,-193.57919244,0.00019052,2]
[364861766,1749282324201,-39.61724466,0.00019052,2]
[364861767,1749282324225,-150.84994409,0.00019178,2]
[364861768,1749282327878,-24.31005591,0.00019178,2]
[364861769,1749282327906,-139.31334946,0.00019334,7]
[364861770,1749282332206,-10.68665054,0.00019334,7]
[364861771,1749282332230,-168.35692129,0.000195,2]
[364861772,1749282332254,-17.54762392,0.000195,7]
[364861773,1749282335966,-231.48130738,0.000195,7]
[364861774,1749282339234,-50.9710687,0.000195,7]
[364861775,1749282339260,-258.79446477,0.000195,7]
[364861776,1749282364019,-154.49745998,0.000195,7]
[364861777,1749282366184,-86.70807525,0.000195,7]
[364861778,1749282366209,-81.12446477,0.000195,2]
[364861780,1749282390475,1342.5,0.00017082,2]
[364861781,1749282391473,-167.15,0.00019346,2]
[364861782,1749282400029,-296.34420104,0.00019346,2]
[364861783,1749282401754,-175.49300185,0.00019346,2]
[364861784,1749282403663,-300.0,0.00019346,2]
[364861785,1749282405891,208.35,0.00018996,2]
[364861786,1749282407137,-318.69683637,0.00019346,2]
[364861787,1749282409568,-84.81596074,0.00019346,2]
[364861788,1749282409593,-227.19403926,0.000195,2]
[364861789,1749282413621,-151.0,0.000195,2]
[364861791,1749282415466,-161.02097606,0.000195,2]
[364861792,1749282417388,-273.10450116,0.000195,2]
[364861793,1749282422188,-195.49686837,0.000195,2]
[364861802,1749282434468,-111.05915038,0.000195,2]
[364861803,1749282434496,-39.94084962,0.000195,2]
[364861804,1749282441268,-212.88366573,0.000195,2]
[364861805,1749282445914,-47.17548465,0.000195,2]
[364861806,1749282445938,-181.08010149,0.000195,2]
[364861807,1749282445961,-9.82410136,0.00019501,2]
[364861808,1749282449364,-200.97259269,0.00019501,2]
[364861814,1749282453865,-203.76515372,0.00019501,2]
[364861815,1749282455862,-241.46216199,0.00019501,2]
[364861816,1749282462145,-153.92442386,0.000195,7]
[364861817,1749282463977,-199.5341028,0.000195,7]
[364861818,1749282465961,-498.7506238,0.000195,7]
[364861819,1749282470882,-247.79084954,0.000195,7]
[364861820,1749282470909,-595.43738394,0.00019501,2]
[364861821,1749282473279,-414.81201026,0.00019501,2]
[364861822,1749282478864,-200.0,0.00019501,2]
[364861823,1749282480770,-168.35281345,0.00019501,2]
[364861824,1749282482573,200.0,0.00018929,2]
[364861825,1749282494930,-176.14167058,0.00019501,2]
[364861826,1749282504542,-167.45125612,0.00019501,2]
[364861830,1749282512160,-354.01087376,0.00019501,2]
[364861831,1749282514985,-178.98,0.00019501,2]
[364861832,1749282518453,-196.7060109,0.00019501,2]
[364861833,1749282523402,-158.48703992,0.00019501,2]
[364861834,1749282526138,-206.0,0.00019501,2]
[364861835,1749282529425,-217.55714135,0.00019501,2]
[364861837,1749282533977,-341.76959788,0.00019501,2]
[364861838,1749282632316,-479.11857813,0.000195,2]
[364861839,1749282632331,-720.88142187,0.000195,2]
[364861840,1749282632343,-231.49089373,0.00019501,2]
[364861841,1749282632359,-19636.77929835,0.00019501,2]
[364861842,1749282632370,-33281.73020034,0.00019559,2]
[364861843,1749282632382,-45718.13631706,0.00019559,2]
[364861844,1749282632442,-8912.48533917,0.00019559,2]
[364861845,1749282632499,-1545.73815394,0.00019559,2]
[364861855,1749282638586,-500.0,0.00019558,2]
[364861856,1749282638597,-4780.13102871,0.00019558,2]
[364861857,1749282638607,-3116.57465558,0.00019558,2]
[364861860,1749282638649,-1663.55637313,0.00019558,2]